bitfinex-derivatives/quotes_SOLF0:USTF0_20250312
["timestamp","ask_amount","ask_price","bid_price","bid_amount"]
[1741765103168,8.1233,123.14,123.09,8.1262]
[1741765103467,8.1233,123.14,123.08,36.26]
[1741765103668,8.1219,123.16,123.08,36.26]
[1741765103870,0.06041495,123.12,123.1,0.05209592]
[1741765104163,36.26,123.17,123.1,0.05209592]
[1741765104364,63.95654073,123.21,123.1,27.74863665]
[1741765104565,4.61033302,123.2,123.1,27.74863665]
[1741765104766,4.61033302,123.2,123.1,27.69654073]
[1741765104969,12.72963302,123.2,123.1,27.69654073]
[1741765105164,4.61033302,123.19,123.1,27.69654073]
[1741765105373,63.95654073,123.21,123.1,27.69654073]
[1741765105574,0.0575458,123.17,123.1,27.69654073]
[1741765105773,0.0575458,123.17,123.14,0.05482607]
[1741765106178,0.0575458,123.17,123.15,8.1218]
[1741765108269,36.26,123.16,123.06,271.37654073]
[1741765108575,40.87893916,123.15,123.06,279.94]
[1741765108770,36.26,123.15,123.06,279.94]
[1741765108976,36.26,123.15,123.06,341.94]
[1741765109176,36.26,123.15,123.06,307.63654073]
[1741765109475,0.05483493,123.12,123.09,0.05134303]
[1741765110071,3.493e-05,123.12,123.11,8.1248]
[1741765111368,192.0,123.21,123.17,8.1209]
[1741765111369,4.62158916,123.19,123.17,8.1209]
[1741765111573,27.69654073,123.22,123.17,8.1209]
[1741765111771,12.74242524,123.21,123.17,8.1209]
[1741765111972,4.62372524,123.2,123.17,8.1209]
[1741765112173,4.62372524,123.19,123.17,8.1209]
[1741765112478,27.69654073,123.22,123.15,36.26]
[1741765112678,0.05751469,123.19,123.17,0.06050191]
[1741765112977,4.62519471,123.18,123.17,0.06050191]
[1741765113173,4.62519471,123.18,123.15,36.26]
[1741765113581,4.62519471,123.18,123.12,36.26]
[1741765113773,4.62519471,123.17,123.12,36.26]
[1741765113972,27.69654073,123.2,123.12,36.26]
[1741765114277,0.06159371,123.17,123.15,0.06106788]
[1741765115482,0.06159371,123.17,123.15,8.18316788]
[1741765115893,4.62783082,123.16,123.07,27.98244073]
[1741765116186,6.64693082,123.15,123.08,36.26]
[1741765116387,2.0191,123.15,123.08,36.26]
[1741765117093,0.05212311,123.13,123.1,0.05188795]
[1741765117486,8.17592311,123.13,123.1,0.05188795]
[1741765117783,0.05212311,123.13,123.1,8.17708795]
[1741765118188,0.05212311,123.13,123.11,8.125]
[1741765118886,0.05212311,123.13,123.12,8.1244]
[1741765119992,0.05212311,123.13,123.1,8.17718795]
[1741765120295,0.05212311,123.13,123.1,0.05188795]
[1741765120587,0.05212311,123.13,123.11,8.1246]
[1741765121192,0.05212311,123.13,123.1,8.17738795]
[1741765121493,0.05212311,123.13,123.1,0.05188795]
[1741765121690,4.68593562,123.13,123.11,8.1246]
[1741765121895,4.68593562,123.13,123.1,0.05188795]
[1741765122088,0.05212311,123.13,123.1,0.05188795]
[1741765123594,0.05212311,123.13,123.12,8.1244]
[1741765125693,4.63771118,123.14,123.11,36.26]
[1741765125890,40.4557,123.19,123.11,36.26]
[1741765126095,4.63712506,123.18,123.11,36.26]
[1741765126301,4.63712506,123.17,123.13,8.1235]
[1741765126494,4.63712506,123.16,123.11,36.26]
[1741765126793,8.1217,123.17,123.11,36.26]
[1741765127002,0.0511685,123.15,123.12,0.05862689]
[1741765127400,0.0511685,123.15,123.13,8.1233]
[1741765127597,0.0511685,123.15,123.12,0.05862689]
[1741765128099,0.0511685,123.15,123.14,8.1231]
[1741765128896,0.0511685,123.15,123.12,0.05862689]
[1741765129495,0.0511685,123.15,123.14,8.1231]
[1741765130298,0.0511685,123.15,123.13,8.1234]
[1741765130701,0.0511685,123.15,123.12,0.05862689]
[1741765131108,0.0511685,123.15,123.14,8.1231]
[1741765131302,4.1957,123.19,123.12,17.37146766]
[1741765131502,4.63927642,123.18,123.12,17.37146766]
[1741765131694,4.63927642,123.17,123.16,8.1217]
[1741765131900,4.1957,123.19,123.12,17.31284077]
[1741765132103,4.63884433,123.18,123.12,17.31284077]
[1741765132304,4.1957,123.19,123.17,8.121]
[1741765132600,4.63841555,123.18,123.17,8.121]
[1741765132800,0.06218588,123.19,123.18,8.1204]
[1741765132996,16.70395,123.2,123.17,0.05338176]
[1741765133201,5e-05,123.2,123.18,17.31284077]
[1741765133395,5e-05,123.2,123.19,44.3598]
[1741765134501,4.63201141,123.25,123.19,36.24]
[1741765134704,4.3196,123.27,123.24,8.1165]
[1741765134904,4.63177521,123.26,123.24,8.1165]
[1741765135103,4.63177521,123.25,123.24,8.1165]
[1741765135301,44.23733764,123.28,123.23,17.31284077]
[1741765135500,4.62881871,123.27,123.23,53.55284077]
[1741765135705,0.05834041,123.27,123.24,0.06123422]
[1741765136202,4.68703577,123.27,123.24,0.06123422]
[1741765136408,0.05834041,123.27,123.25,8.1153]
[1741765136906,4.68338995,123.27,123.24,0.06123422]
[1741765137302,0.05834041,123.27,123.25,8.1153]
[1741765138107,0.05834041,123.27,123.24,0.06123422]
[1741765138306,0.05834041,123.27,123.26,8.1152]
[1741765138511,0.05834041,123.27,123.24,0.06123422]
[1741765138898,15.95284041,123.27,123.24,0.06123422]
[1741765140907,15.95284041,123.27,123.25,8.1157]
[1741765141403,15.95284041,123.27,123.24,8.17743422]
[1741765141608,15.95284041,123.27,123.24,0.06123422]
[1741765144510,15.95284041,123.27,123.25,8.1154]
[1741765144709,15.95284041,123.27,123.24,0.06123422]
[1741765144910,15.95284041,123.27,123.24,8.17743422]
[1741765145211,24.06744041,123.27,123.24,0.06123422]
[1741765145807,15.95284041,123.27,123.24,0.06123422]
[1741765146011,43.59468785,123.27,123.2,8.1187]
[1741765146209,43.53634744,123.27,123.2,8.1187]
[1741765146410,43.53634744,123.27,123.16,27.64184744]
[1741765146611,43.53634744,123.27,123.19,8.1195]
[1741765146813,4.60368748,123.26,123.16,27.64184744]
[1741765147012,63.84184744,123.25,123.15,279.74]
[1741765147208,0.06237172,123.22,123.2,0.05207382]
[1741765149018,8.18027172,123.22,123.2,0.05207382]
[1741765149815,0.06237172,123.22,123.2,0.05207382]
[1741765152021,0.06237172,123.22,123.16,36.2]
[1741765152812,8.18057172,123.22,123.18,8.12]
[1741765153013,0.06237172,123.22,123.16,36.2]
[1741765153213,0.06237172,123.22,123.19,0.0593438]
[1741765154418,8.1188,123.21,123.19,0.0593438]
[1741765154816,0.06237172,123.22,123.19,0.0593438]
[1741765155023,8.18037172,123.22,123.19,0.0593438]
[1741765156118,8.18037172,123.22,123.19,8.1789438]
[1741765156716,8.119,123.21,123.19,0.0593438]
[1741765156916,0.06237172,123.22,123.19,0.0593438]
[1741765157722,8.1191,123.2,123.19,0.0593438]
[1741765157917,63.84184744,123.21,123.1,271.24184744]
[1741765158219,4.60869963,123.2,123.1,243.6]
[1741765158413,17.31606324,123.18,123.11,36.2]
[1741765158723,8.1232,123.14,123.11,8.1247]
[1741765158921,8.1232,123.14,123.1,279.8]
[1741765159220,0.06224826,123.14,123.11,0.05337373]
[1741765159620,7.38088826,123.14,123.11,0.05337373]
[1741765160721,7.43771737,123.14,123.11,0.05337373]
[1741765161026,0.05682911,123.14,123.11,0.05337373]
[1741765161722,0.05682911,123.14,123.11,53.56943697]
[1741765161922,0.05682911,123.14,123.11,36.25337373]
[1741765162424,0.05682911,123.14,123.11,0.05337373]
[1741765163618,0.05682911,123.14,123.11,8.17797373]
[1741765164125,0.05682911,123.14,123.11,0.05337373]
[1741765164324,8.17992911,123.14,123.11,0.05337373]
[1741765164519,0.05682911,123.14,123.11,0.05337373]
[1741765165318,8.18022911,123.14,123.11,0.05337373]
[1741765165626,0.05682911,123.14,123.11,0.05337373]
[1741765166126,0.05682911,123.14,123.12,8.124]
[1741765166725,8.18002911,123.14,123.11,8.17807373]
[1741765166927,0.05682911,123.14,123.11,0.05337373]
[1741765167322,0.05682911,123.14,123.12,8.1239]
[1741765167922,0.05682911,123.14,123.13,8.1237]
[1741765168926,0.05682911,123.14,123.12,8.1241]
[1741765169125,0.05682911,123.14,123.11,0.05337373]
[1741765169928,0.05682911,123.14,123.13,8.1237]
[1741765172333,0.05682911,123.14,123.12,8.1241]
[1741765172525,0.05682911,123.14,123.11,0.05337373]
[1741765172925,0.05682911,123.14,123.12,8.1239]
[1741765173126,0.05682911,123.14,123.11,0.05337373]
[1741765173529,8.18022911,123.14,123.11,8.17807373]
[1741765174433,0.05682911,123.14,123.11,0.05337373]
[1741765174830,8.1238,123.13,123.11,0.05337373]
[1741765175231,0.05682911,123.14,123.11,0.05337373]
[1741765175531,8.1239,123.13,123.11,0.05337373]
[1741765177029,8.1244,123.12,123.09,8.126]
[1741765177528,17.31606324,123.15,123.07,53.49606324]
[1741765177921,8.1238,123.13,123.1,8.1253]
[1741765178130,0.05780939,123.12,123.1,0.06048311]
[1741765178829,0.05780939,123.12,123.11,8.1247]
[1741765185642,0.05780939,123.12,123.1,0.06048311]
[1741765185942,0.05780939,123.12,123.1,8.18598311]
[1741765186136,0.05780939,123.12,123.1,0.06048311]
[1741765186337,0.05780939,123.12,123.11,8.125]
[1741765189549,0.05780939,123.12,123.1,8.18578311]
[1741765189753,0.05780939,123.12,123.1,0.06048311]
[1741765190147,8.18220939,123.12,123.1,0.06048311]
[1741765192055,12.75565707,123.11,123.04,297.17606324]
[1741765192252,4.63035707,123.1,123.04,297.17606324]
[1741765192654,4.63035707,123.1,123.08,8.127]
[1741765193049,4.63035707,123.1,123.04,297.17606324]
[1741765193247,0.05193294,123.1,123.08,0.05603025]
[1741765193855,0.05193294,123.1,123.09,8.1264]
[1741765197360,0.05193294,123.1,123.08,36.21603025]
[1741765197562,0.05193294,123.1,123.08,44.34273025]
[1741765197761,0.05193294,123.1,123.08,0.05603025]
[1741765198166,8.1282,123.07,123.02,32.43050731]
[1741765198554,53.47606324,123.09,123.02,40.56120731]
[1741765198759,8.1284,123.06,123.02,8.1307]
[1741765198961,53.47606324,123.09,123.01,154.71037913]
[1741765199266,0.05842959,123.06,123.04,0.05974522]
[1741765200264,58.11663948,123.05,123.01,118.55037913]
[1741765200461,4.64057624,123.04,123.01,118.55037913]
[1741765200665,4.64057624,123.03,123.01,118.55037913]
[1741765200967,4.64057624,123.02,123.01,118.55037913]
[1741765201167,2.1294,123.04,123.01,118.55037913]
[1741765201466,4.63855659,123.02,123.01,118.55037913]
[1741765201867,4.63855659,123.02,123.0,0.06058209]
[1741765202064,0.05443585,123.03,123.0,0.06058209]
[1741765202266,4.64320431,123.02,123.0,0.06058209]
[1741765202463,0.05443585,123.03,123.0,0.06058209]
[1741765202666,4.69310606,123.03,123.0,0.06058209]
[1741765202863,0.05443585,123.03,123.0,0.06058209]
[1741765203369,12.77076014,123.02,123.0,0.06058209]
[1741765203669,17.37049909,123.03,123.0,0.06058209]
[1741765203966,4.63549138,123.02,123.0,0.06058209]
[1741765204361,17.37049909,123.03,123.0,0.06058209]
[1741765204666,4.63086793,123.02,123.0,0.06058209]
[1741765204863,4.63086793,123.02,122.95,68.59050731]
[1741765205068,4.63086793,123.02,122.95,36.16]
[1741765205259,4.63086793,123.02,122.98,8.1331]
[1741765205461,17.31606324,123.01,122.93,17.31606324]
[1741765205658,4.62747754,123.0,122.93,17.31606324]
[1741765205865,0.0563077,122.98,122.95,0.05223507]
[1741765206063,0.0563077,122.98,122.96,8.1345]
[1741765206459,0.0563077,122.98,122.95,8.18763507]
[1741765207464,8.1900077,122.98,122.95,0.05223507]
[1741765207663,10.2350077,122.98,122.95,0.05223507]
[1741765207863,2.1013077,122.98,122.95,0.05223507]
[1741765208059,10.2353077,122.98,122.95,0.05223507]
[1741765208766,2.1013077,122.98,122.95,0.05223507]
[1741765208969,2.1013077,122.98,122.94,8.1361]
[1741765208970,55.67886324,122.97,122.89,261.11606324]
[1741765209160,55.67886324,122.97,122.89,279.96]
[1741765209666,17.31606324,122.95,122.87,36.16]
[1741765209864,17.31606324,122.93,122.85,17.44016324]
[1741765210173,0.05842248,122.92,122.9,0.05629572]
[1741765210567,0.05842248,122.92,122.91,8.1383]
[1741765210966,0.05842248,122.92,122.9,0.05629572]
[1741765211164,0.05842248,122.92,122.9,8.19469572]
[1741765211784,0.05842248,122.92,122.91,8.1383]
[1741765211976,0.05842248,122.92,122.9,0.05629572]
[1741765212874,0.05842248,122.92,122.9,8.19479572]
[1741765213073,0.05842248,122.92,122.9,0.05629572]
[1741765214173,36.23842248,122.92,122.89,8.1391]
[1741765214475,17.31606324,122.91,122.83,36.18]
[1741765214671,19.49116324,122.91,122.83,53.49606324]
[1741765214874,19.49116324,122.91,122.87,8.1406]
[1741765215073,2.1751,122.91,122.87,8.1406]
[1741765215273,0.05442813,122.9,122.88,0.05364366]
[1741765215574,0.05442813,122.9,122.88,8.19374366]
[1741765216175,0.05442813,122.9,122.89,8.1396]
[1741765216377,0.05442813,122.9,122.88,0.05364366]
[1741765217577,0.05442813,122.9,122.89,8.1396]
[1741765226383,0.05442813,122.9,122.88,8.19324366]
[1741765227472,0.05442813,122.9,122.88,0.05364366]
[1741765227678,8.1413,122.87,122.79,280.24]
[1741765227883,17.31606324,122.88,122.79,280.24]
[1741765228280,25.45656324,122.88,122.82,8.144]
[1741765228480,17.31606324,122.88,122.82,8.144]
[1741765228675,0.05901831,122.86,122.84,0.05726148]
[1741765229088,17.37508155,122.86,122.84,0.05726148]
[1741765229385,8.1427,122.85,122.79,8.146]
[1741765229585,19.49156324,122.86,122.78,17.31606324]
[1741765229788,19.49156324,122.86,122.77,36.18]
[1741765230078,8.1433,122.84,122.78,8.1465]
[1741765230282,0.05696328,122.82,122.8,0.05162063]
[1741765231880,0.05696328,122.82,122.81,8.1449]
[1741765234382,6.328e-05,122.82,122.81,44.3249]
[1741765234580,6.328e-05,122.82,122.81,46.7649]
[1741765235086,6.328e-05,122.82,122.81,44.3249]
[1741765240088,38.3674,122.9,122.81,38.8589]
[1741765240286,2.1874,122.9,122.83,17.31606324]
[1741765241286,0.05707384,122.88,122.87,8.1406]
[1741765241889,0.05707384,122.88,122.85,0.0599905]
[1741765242487,8.19777384,122.88,122.85,0.0599905]
[1741765242792,0.05707384,122.88,122.85,0.0599905]
[1741765243094,8.1411,122.87,122.85,0.0599905]
[1741765243391,53.55313708,122.88,122.85,0.0599905]
[1741765243592,8.1416,122.86,122.85,0.0599905]
[1741765244094,8.1412,122.87,122.85,0.0599905]
[1741765244291,53.55313708,122.88,122.85,0.0599905]
[1741765244483,4.61555298,122.87,122.85,0.0599905]
[1741765244684,12.75685298,122.87,122.85,0.0599905]
[1741765244888,8.1413,122.87,122.85,0.0599905]
[1741765245093,4.61572359,122.86,122.85,0.0599905]
[1741765245289,17.31606324,122.86,122.78,0.9256]
[1741765245495,6.7598175,122.85,122.78,36.16]
[1741765245695,4.6158175,122.84,122.78,36.16]
[1741765246396,0.05677931,122.82,122.8,0.0617702]
[1741765246896,0.05677931,122.82,122.81,8.1449]
[1741765247799,0.05677931,122.82,122.8,0.0617702]
[1741765247990,0.05677931,122.82,122.81,8.1449]
[1741765249900,0.05677931,122.82,122.8,0.0617702]
[1741765250095,17.37284255,122.82,122.8,0.0617702]
[1741765250297,4.62875603,122.81,122.8,0.0617702]
[1741765250595,4.62875603,122.81,122.73,17.31606324]
[1741765250792,17.37284255,122.82,122.74,36.16]
[1741765250793,4.62875603,122.8,122.74,36.16]
[1741765250993,8.146,122.8,122.74,36.16]
[1741765251198,17.31606324,122.82,122.74,36.16]
[1741765251501,0.05329461,122.79,122.77,0.05624104]
[1741765251701,4.68650506,122.79,122.77,0.05624104]
[1741765251897,0.05329461,122.79,122.77,0.05624104]
[1741765253496,4.68821303,122.79,122.77,0.05624104]
[1741765253695,0.05329461,122.79,122.78,8.1469]
[1741765253994,0.05329461,122.79,122.77,0.05624104]
[1741765254395,4.63623613,122.78,122.77,0.05624104]
[1741765254699,0.05329461,122.79,122.77,0.05624104]
[1741765255395,0.05329461,122.79,122.78,8.1469]
[1741765255600,0.05329461,122.79,122.77,0.05624104]
[1741765255996,0.05329461,122.79,122.78,8.1469]
[1741765256803,0.05329461,122.79,122.77,8.20334104]
[1741765257097,0.05329461,122.79,122.77,0.05624104]
[1741765257302,0.05329461,122.79,122.78,8.1469]
[1741765259203,2.1643,122.84,122.82,8.1442]
[1741765259399,2.1643,122.84,122.78,36.16]
[1741765259902,2.1643,122.84,122.8,8.1451]
[1741765259903,4.63509734,122.83,122.8,8.1451]
[1741765260297,4.688924,122.83,122.81,8.1449]
[1741765260493,4.688924,122.83,122.8,0.05412461]
[1741765260701,0.05382666,122.83,122.8,0.05412461]
[1741765260903,53.47606324,122.9,122.81,17.31606324]
[1741765261102,4.63429143,122.89,122.82,36.16]
[1741765261303,4.63429143,122.88,122.82,36.16]
[1741765261500,4.63429143,122.87,122.83,8.1433]
[1741765261701,4.63429143,122.87,122.82,36.16]
[1741765262006,17.31606324,122.88,122.84,8.1424]
[1741765262198,0.05475223,122.86,122.83,0.06026002]
[1741765262400,0.05475223,122.86,122.83,8.20346002]
[1741765262703,0.05475223,122.86,122.83,0.06026002]
[1741765263103,0.05475223,122.86,122.84,8.1425]
[1741765263506,0.05475223,122.86,122.83,0.06026002]
[1741765264204,0.05475223,122.86,122.83,8.20356002]
[1741765264904,0.05475223,122.86,122.83,0.06026002]
[1741765265905,8.19675223,122.86,122.83,0.06026002]
[1741765266209,4.63812498,122.85,122.83,0.06026002]
[1741765266805,12.78042498,122.85,122.83,0.06026002]
[1741765267101,0.05475223,122.86,122.83,8.20346002]
[1741765267309,4.63970618,122.85,122.83,8.20346002]
[1741765267709,0.05475223,122.86,122.83,0.06026002]
[1741765267910,0.05475223,122.86,122.84,8.1429]
[1741765268101,4.69601551,122.86,122.83,0.06026002]
[1741765268305,0.05475223,122.86,122.83,0.06026002]
[1741765268499,0.05475223,122.86,122.85,8.1422]
[1741765268701,4.2361,122.9,122.85,8.1422]
[1741765268911,4.641883,122.89,122.84,36.14]
[1741765269112,4.641883,122.88,122.85,8.1421]
[1741765269405,8.1398,122.89,122.85,8.1421]
[1741765269611,4.64248208,122.88,122.85,8.1421]
[1741765269812,8.1398,122.89,122.86,8.1414]
[1741765270012,4.69892777,122.88,122.86,8.1414]
[1741765270312,0.0562332,122.88,122.86,8.1414]
[1741765270707,4.70013339,122.88,122.86,8.1414]
[1741765270907,0.0562332,122.88,122.86,8.1414]
[1741765271103,4.64386838,122.87,122.86,8.1414]
[1741765271309,0.0562332,122.88,122.86,8.1414]
[1741765271611,0.0562332,122.88,122.85,0.05419534]
[1741765272313,0.0562332,122.88,122.87,8.1409]
[1741765273513,0.0562332,122.88,122.86,8.1412]
[1741765273911,8.1967332,122.88,122.85,0.05419534]
[1741765274210,0.0562332,122.88,122.85,8.19599534]
[1741765274616,4.69974862,122.88,122.85,8.19599534]
[1741765275005,0.0562332,122.88,122.85,8.19599534]
[1741765275210,8.1968332,122.88,122.85,0.05419534]
[1741765275409,0.0562332,122.88,122.85,0.05419534]
[1741765276311,0.0562332,122.88,122.86,8.1412]
[1741765277316,0.0562332,122.88,122.85,0.05419534]
[1741765277523,0.0562332,122.88,122.87,8.1409]
[1741765277818,4.69848665,122.88,122.85,0.05419534]
[1741765278017,0.0562332,122.88,122.86,8.1412]
[1741765278419,0.0562332,122.88,122.85,0.05419534]
[1741765278621,0.0562332,122.88,122.87,8.1409]
[1741765278821,4.69817022,122.88,122.87,8.1409]
[1741765279120,4.69817022,122.88,122.86,8.1412]
[1741765279315,0.0562332,122.88,122.86,8.1412]
[1741765279518,17.37229644,122.88,122.85,0.05419534]
[1741765279722,12.78322043,122.87,122.85,0.05419534]
[1741765280021,0.0562332,122.88,122.85,0.05419534]
[1741765280321,4.64198575,122.87,122.85,0.05419534]
[1741765280622,0.0562332,122.88,122.85,36.17419534]
[1741765280811,0.0562332,122.88,122.87,8.1409]
[1741765281415,0.0562332,122.88,122.85,36.17419534]
[1741765281616,0.0562332,122.88,122.86,8.1412]
[1741765281817,4.6970384,122.88,122.86,8.1412]
[1741765282016,0.0562332,122.88,122.86,8.1412]
[1741765282315,0.0562332,122.88,122.87,8.1409]
[1741765282722,0.0562332,122.88,122.85,36.17419534]
[1741765282922,0.0562332,122.88,122.86,8.1413]
[1741765283321,0.0562332,122.88,122.85,36.17419534]
[1741765283920,0.0562332,122.88,122.87,8.1409]
[1741765289223,0.0562332,122.88,122.86,8.1413]
[1741765289524,0.0562332,122.88,122.85,0.05419534]
[1741765290125,4.69269177,122.88,122.85,0.05419534]
[1741765290320,4.63645857,122.87,122.85,0.05419534]
[1741765290828,12.77775857,122.87,122.85,0.05419534]
[1741765291030,8.1413,122.87,122.85,0.05419534]
[1741765294329,4.63794589,122.86,122.85,0.05419534]
[1741765294535,4.63821605,122.86,122.85,0.05419534]
[1741765295033,12.77981605,122.86,122.85,0.05419534]
[1741765295931,60.47427929,122.86,122.78,244.3]
[1741765296130,17.31606324,122.84,122.78,244.3]
[1741765296332,4.63821605,122.85,122.78,244.3]
[1741765296333,8.85051605,122.83,122.78,244.3]
[1741765296631,2.1712,122.83,122.78,244.3]
[1741765297030,0.05616207,122.82,122.8,8.1452]
[1741765297225,0.05616207,122.82,122.79,0.0516741]
[1741765297430,8.1453,122.81,122.79,0.0516741]
[1741765298439,21.96109634,122.8,122.75,86.11987182]
[1741765298630,4.6450331,122.79,122.75,32.43050731]
[1741765298832,4.6450331,122.78,122.75,32.43050731]
[1741765299125,8.1474,122.78,122.75,32.43050731]
[1741765299326,4.64355553,122.77,122.74,86.11987182]
[1741765299525,4.64447946,122.76,122.74,86.11987182]
[1741765299728,0.05525358,122.77,122.74,86.17799837]
[1741765299939,12.7945952,122.76,122.74,86.17799837]
[1741765300237,4.64642003,122.75,122.74,86.17799837]
[1741765300439,8.1489,122.75,122.74,86.17799837]
[1741765300736,4.64354683,122.75,122.74,9.35904968]
[1741765301238,4.64354683,122.75,122.74,0.05812655]
[1741765301733,17.31606324,122.76,122.74,0.05812655]
[1741765302129,36.13525358,122.77,122.74,0.05812655]
[1741765302532,0.05525358,122.77,122.74,0.05812655]
[1741765302840,4.69220818,122.77,122.74,8.20752655]
[1741765303227,0.05525358,122.77,122.74,8.20752655]
[1741765304136,0.05525358,122.77,122.74,0.05812655]
[1741765304731,8.20295358,122.77,122.74,0.05812655]
[1741765305343,0.05525358,122.77,122.74,8.20752655]
[1741765306228,0.05525358,122.77,122.74,0.05812655]
[1741765306437,0.05525358,122.77,122.75,8.1483]
[1741765308144,0.05525358,122.77,122.75,8.1484]
[1741765308331,0.05525358,122.77,122.74,0.05812655]
[1741765309436,8.20315358,122.77,122.74,0.05812655]
[1741765310543,8.1486,122.76,122.74,0.05812655]
[1741765311043,17.31606324,122.76,122.74,0.05812655]
[1741765311239,8.1489,122.75,122.74,0.05812655]
[1741765311938,25.46466324,122.76,122.74,0.05812655]
[1741765312143,17.31606324,122.76,122.74,0.05812655]
[1741765313242,36.13525358,122.77,122.74,0.05812655]
[1741765313841,36.13525358,122.77,122.74,8.20732655]
[1741765314146,36.13525358,122.77,122.74,0.05812655]
[1741765315049,44.28325358,122.77,122.74,0.05812655]
[1741765315537,36.13525358,122.77,122.74,0.05812655]
[1741765315735,25.46486324,122.76,122.74,0.05812655]
[1741765315939,36.13525358,122.77,122.74,0.05812655]
[1741765316140,0.05525358,122.77,122.74,0.05812655]
[1741765316336,0.05525358,122.77,122.74,8.20722655]
[1741765317141,0.05525358,122.77,122.74,0.05812655]
[1741765319638,8.1483,122.76,122.74,0.05812655]
[1741765319836,17.31606324,122.76,122.74,0.05812655]
[1741765320946,17.31606324,122.76,122.69,2.088]
[1741765321239,17.31606324,122.74,122.66,36.06]
[1741765321448,8.1512,122.72,122.68,8.1533]
[1741765321639,8.1512,122.72,122.66,38.116]
[1741765322041,17.31606324,122.76,122.68,0.05411855]
[1741765322242,17.31606324,122.76,122.66,38.116]
[1741765322243,17.31606324,122.76,122.67,17.31606324]
[1741765322449,0.0570701,122.73,122.71,0.05310518]
[1741765323242,0.0570701,122.73,122.72,8.1509]
[1741765324848,36.08,122.77,122.71,2.21290518]
[1741765325152,55.48796324,122.8,122.71,19.52896842]
[1741765325453,55.48796324,122.8,122.71,19.47586324]
[1741765325649,55.48796324,122.8,122.76,8.1478]
[1741765326049,0.05366883,122.79,122.77,0.06229399]
[1741765326553,8.20046883,122.79,122.77,0.06229399]
[1741765326853,17.31606324,122.78,122.71,2.1598]
[1741765327051,17.31606324,122.76,122.71,2.1598]
[1741765327947,0.06248709,122.75,122.73,8.1498]
[1741765328855,21.93487799,122.74,122.72,0.04889466]
[1741765329051,17.31606324,122.74,122.72,0.04889466]
[1741765330156,0.06248709,122.75,122.72,0.04889466]
[1741765330656,8.21168709,122.75,122.72,0.04889466]
[1741765331154,0.06248709,122.75,122.72,0.04889466]
[1741765331744,8.1502,122.73,122.72,0.04889466]
[1741765331944,17.31606324,122.74,122.72,0.04889466]
[1741765332356,0.06248709,122.75,122.72,0.04889466]
[1741765332556,4.62600452,122.74,122.72,0.04889466]
[1741765333651,8.1502,122.73,122.72,0.04889466]
[1741765333860,12.77620452,122.73,122.72,0.04889466]
[1741765335058,12.78372818,122.73,122.72,0.04889466]
[1741765335360,0.06248709,122.75,122.72,0.04889466]
[1741765335658,4.63510777,122.74,122.72,0.04889466]
[1741765336261,0.06248709,122.75,122.72,0.04889466]
[1741765336456,8.1502,122.73,122.72,0.04889466]
[1741765336657,12.78775182,122.73,122.72,0.04889466]
[1741765336962,4.63755182,122.73,122.72,0.04889466]
[1741765337260,8.1497,122.74,122.72,0.04889466]
[1741765338161,12.79094925,122.73,122.72,0.04889466]
[1741765338751,30.10701249,122.73,122.72,0.04889466]
[1741765339157,12.79094925,122.73,122.72,0.04889466]
[1741765339554,12.79094925,122.73,122.64,36.04]
[1741765339555,57.99681249,122.73,122.64,36.04]
[1741765339761,4.64074925,122.72,122.64,38.1143]
[1741765340056,17.31606324,122.69,122.61,4.2613]
[1741765340260,17.31606324,122.67,122.61,6.3356]
[1741765340463,4.65040588,122.66,122.61,6.3356]
[1741765340658,0.05387981,122.65,122.61,6.3356]
[1741765341560,4.70607038,122.65,122.61,6.3356]
[1741765341761,0.05387981,122.65,122.61,6.3356]
[1741765342565,4.65154558,122.64,122.61,6.3356]
[1741765342960,4.65154558,122.64,122.61,14.4933]
[1741765343161,0.05387981,122.65,122.61,6.3356]
[1741765343564,0.05387981,122.65,122.61,14.4935]
[1741765344163,36.04,122.69,122.62,17.31606324]
[1741765344363,4.64811598,122.68,122.62,17.31606324]
[1741765344564,36.04,122.69,122.65,8.1554]
[1741765344766,4.64834669,122.68,122.65,8.1554]
[1741765345062,36.04,122.69,122.65,8.1554]
[1741765345269,4.70195419,122.68,122.65,0.05387981]
[1741765345668,0.05383158,122.68,122.65,0.05387981]
[1741765346261,4.64622715,122.67,122.65,0.05387981]
[1741765347664,0.05383158,122.68,122.65,0.05387981]
[1741765347868,4.6985442,122.68,122.65,0.05387981]
[1741765348061,4.64471262,122.67,122.65,8.20907981]
[1741765348260,0.05383158,122.68,122.65,8.20907981]
[1741765348671,4.69758817,122.68,122.66,8.1548]
[1741765348970,0.05383158,122.68,122.66,8.1548]
[1741765349571,4.69760091,122.68,122.65,8.20917981]